[Event "*** Titled Tuesday Blitz"]
[Site "Chess.com"]
[Date "2020.11.10"]
[Round "7"]
[White "Chigorinetz"]
[Black "giantslayer83"]
[Result "1-0"]
[WhiteElo "2561"]
[BlackElo "2696"]
[TimeControl "180+1"]
[EndTime "11:19:09 PST"]
[Termination "Chigorinetz won by resignation"]

1. e4 {[%clk 0:03:00.9]} 1... c6 {[%clk 0:02:59.9]} 2. d4 {[%clk 0:03:00.7]}
2... d5 {[%clk 0:03:00.8]} 3. f3 {[%clk 0:03:01.1]} 3... g6 {[%clk 0:02:44.7]}
4. Nc3 {[%clk 0:03:00.6]} 4... Bg7 {[%clk 0:02:45]} 5. Be3 {[%clk 0:03:00.9]}
5... dxe4 {[%clk 0:02:40.5]} 6. fxe4 {[%clk 0:02:51.8]} 6... Nf6 {[%clk
0:02:40.7]} 7. Nf3 {[%clk 0:02:51.2]} 7... O-O {[%clk 0:02:37.3]} 8. Qd2 {[%clk
0:02:45.8]} 8... b5 {[%clk 0:02:34]} 9. Bd3 {[%clk 0:02:40.9]} 9... b4 {[%clk
0:02:33.2]} 10. Ne2 {[%clk 0:02:39.1]} 10... a5 {[%clk 0:02:32.8]} 11. Bh6
{[%clk 0:02:36.5]} 11... Ba6 {[%clk 0:02:30.3]} 12. Bxg7 {[%clk 0:02:33.8]}
12... Kxg7 {[%clk 0:02:31.2]} 13. O-O {[%clk 0:02:32.5]} 13... c5 {[%clk
0:02:25.6]} 14. e5 {[%clk 0:02:26.9]} 14... Nd5 {[%clk 0:02:17.6]} 15. Ng3
{[%clk 0:02:16.2]} 15... c4 {[%clk 0:01:57.9]} 16. Be4 {[%clk 0:02:04.6]} 16...
c3 {[%clk 0:01:57.4]} 17. Nh5+ {[%clk 0:01:52.4]} 17... gxh5 {[%clk 0:01:53]}
18. Qg5+ {[%clk 0:01:50.9]} 18... Kh8 {[%clk 0:01:53.1]} 19. Qh6 {[%clk
0:01:47.3]} 19... f5 {[%clk 0:01:52.8]} 20. Ng5 {[%clk 0:01:30.5]} 1-0

[Event "*** Titled Tuesday Blitz"]
[Site "Chess.com"]
[Date "2020.11.10"]
[Round "7"]
[White "DenisQ"]
[Black "Chessdreamer2020"]
[Result "1-0"]
[WhiteElo "2636"]
[BlackElo "2511"]
[TimeControl "180+1"]
[EndTime "11:19:15 PST"]
[Termination "DenisQ won by resignation"]

1. Nf3 {[%clk 0:03:00.9]} 1... d6 {[%clk 0:02:59.5]} 2. g3 {[%clk 0:03:00.3]}
2... e5 {[%clk 0:02:59.6]} 3. Bg2 {[%clk 0:03:00.8]} 3... Nc6 {[%clk 0:03:00]}
4. O-O {[%clk 0:03:01.3]} 4... g6 {[%clk 0:03:00.6]} 5. c4 {[%clk 0:03:01.3]}
5... Bg7 {[%clk 0:03:00.7]} 6. Nc3 {[%clk 0:03:01.3]} 6... Nge7 {[%clk
0:03:01.3]} 7. Rb1 {[%clk 0:03:00.9]} 7... a5 {[%clk 0:02:59.6]} 8. d3 {[%clk
0:02:59.4]} 8... O-O {[%clk 0:02:59.1]} 9. a3 {[%clk 0:02:59.2]} 9... f5 {[%clk
0:02:59.2]} 10. Qc2 {[%clk 0:02:53.8]} 10... h6 {[%clk 0:02:55]} 11. b4 {[%clk
0:02:53.1]} 11... axb4 {[%clk 0:02:54.8]} 12. axb4 {[%clk 0:02:54]} 12... g5
{[%clk 0:02:40.5]} 13. b5 {[%clk 0:02:53.3]} 13... Nb8 {[%clk 0:02:40.6]} 14.
Bb2 {[%clk 0:02:48.8]} 14... Nd7 {[%clk 0:02:40.5]} 15. Ra1 {[%clk 0:02:48.1]}
15... Rxa1 {[%clk 0:02:39.3]} 16. Rxa1 {[%clk 0:02:49]} 16... g4 {[%clk
0:02:38]} 17. Nd2 {[%clk 0:02:48.4]} 17... Ng6 {[%clk 0:02:33.5]} 18. Nd5 {[%clk
0:02:46.2]} 18... f4 {[%clk 0:02:28.8]} 19. Ra8 {[%clk 0:02:40.5]} 19... Nc5
{[%clk 0:02:04.6]} 20. d4 {[%clk 0:02:34.9]} 20... f3 {[%clk 0:01:57.1]} 21.
exf3 {[%clk 0:02:23]} 21... gxf3 {[%clk 0:01:55.9]} 22. Nxf3 {[%clk 0:02:21.8]}
22... e4 {[%clk 0:01:45.4]} 23. dxc5 {[%clk 0:02:19.7]} 23... exf3 {[%clk
0:01:44.1]} 24. Qxg6 {[%clk 0:02:17.4]} 24... Rf7 {[%clk 0:01:33.3]} 25. Bxg7
{[%clk 0:02:01.5]} 25... Rxg7 {[%clk 0:01:26.4]} 26. Rxc8 {[%clk 0:02:00]} 26...
Qxc8 {[%clk 0:01:16.5]} 27. Ne7+ {[%clk 0:01:59.8]} 27... Kf8 {[%clk 0:01:13.8]}
28. Qf6+ {[%clk 0:01:55.1]} 28... Rf7 {[%clk 0:01:09.5]} 29. Qh8+ {[%clk
0:01:54.9]} 29... Kxe7 {[%clk 0:01:09.5]} 30. Qxc8 {[%clk 0:01:55.8]} 30... fxg2
{[%clk 0:01:09.8]} 31. Qxc7+ {[%clk 0:01:55.2]} 1-0

[Event "*** Titled Tuesday Blitz"]
[Site "Chess.com"]
[Date "2020.11.10"]
[Round "7"]
[White "Salem-AR"]
[Black "olksuna"]
[Result "0-1"]
[WhiteElo "2893"]
[BlackElo "2642"]
[TimeControl "180+1"]
[EndTime "11:19:41 PST"]
[Termination "olksuna won by resignation"]

1. d4 {[%clk 0:02:55]} 1... Nf6 {[%clk 0:02:59.9]} 2. c4 {[%clk 0:02:55.1]} 2...
e6 {[%clk 0:03:00]} 3. Nf3 {[%clk 0:02:55.7]} 3... d5 {[%clk 0:02:59.6]} 4. Nc3
{[%clk 0:02:55]} 4... c6 {[%clk 0:02:57.4]} 5. e3 {[%clk 0:02:53.8]} 5... a6
{[%clk 0:02:56.7]} 6. b3 {[%clk 0:02:47.5]} 6... Bb4 {[%clk 0:02:56.2]} 7. Bd2
{[%clk 0:02:47.6]} 7... Qe7 {[%clk 0:02:56.5]} 8. Bd3 {[%clk 0:02:45.8]} 8...
O-O {[%clk 0:02:56.1]} 9. O-O {[%clk 0:02:45]} 9... Nbd7 {[%clk 0:02:55.2]} 10.
Qc2 {[%clk 0:02:42.9]} 10... h6 {[%clk 0:02:51.3]} 11. e4 {[%clk 0:02:15.7]}
11... dxc4 {[%clk 0:02:50.8]} 12. bxc4 {[%clk 0:02:10.9]} 12... e5 {[%clk
0:02:50.7]} 13. d5 {[%clk 0:02:09]} 13... Nc5 {[%clk 0:02:34.3]} 14. Rab1 {[%clk
0:02:05.8]} 14... a5 {[%clk 0:02:27.8]} 15. h3 {[%clk 0:01:27.5]} 15... Bd7
{[%clk 0:02:26.3]} 16. Ne2 {[%clk 0:00:35.6]} 16... cxd5 {[%clk 0:01:57.1]} 17.
Bxb4 {[%clk 0:00:35.2]} 17... axb4 {[%clk 0:01:56.2]} 18. cxd5 {[%clk
0:00:34.3]} 18... Rfc8 {[%clk 0:01:52]} 19. Rxb4 {[%clk 0:00:23.7]} 19... Nxd3
{[%clk 0:01:47.5]} 0-1

[Event "*** Titled Tuesday Blitz"]
[Site "Chess.com"]
[Date "2020.11.10"]
[Round "7"]
[White "ehrenfeld"]
[Black "Leo_C"]
[Result "1-0"]
[WhiteElo "2481"]
[BlackElo "2286"]
[TimeControl "180+1"]
[EndTime "11:19:41 PST"]
[Termination "ehrenfeld won by resignation"]

1. e4 {[%clk 0:03:00.9]} 1... c6 {[%clk 0:03:00.1]} 2. d4 {[%clk 0:03:00.2]}
2... d5 {[%clk 0:03:00]} 3. exd5 {[%clk 0:03:00.8]} 3... cxd5 {[%clk 0:02:59.7]}
4. Bd3 {[%clk 0:03:01.5]} 4... Nc6 {[%clk 0:02:59.3]} 5. c3 {[%clk 0:03:02]}
5... Nf6 {[%clk 0:02:59.2]} 6. Bf4 {[%clk 0:03:01.7]} 6... Bg4 {[%clk
0:02:55.9]} 7. Qb3 {[%clk 0:03:01.5]} 7... Qc8 {[%clk 0:02:55.3]} 8. Nd2 {[%clk
0:03:01.7]} 8... e6 {[%clk 0:02:55]} 9. Ngf3 {[%clk 0:03:02.2]} 9... Be7 {[%clk
0:02:54.5]} 10. O-O {[%clk 0:03:02.6]} 10... O-O {[%clk 0:02:54.4]} 11. Rfe1
{[%clk 0:03:02.5]} 11... a6 {[%clk 0:02:54.3]} 12. a4 {[%clk 0:02:59.5]} 12...
Bh5 {[%clk 0:02:49.5]} 13. Ne5 {[%clk 0:02:58.7]} 13... Nxe5 {[%clk 0:02:48.4]}
14. Bxe5 {[%clk 0:02:58.4]} 14... Nd7 {[%clk 0:02:45.9]} 15. Bg3 {[%clk
0:02:57]} 15... Bg6 {[%clk 0:02:42.7]} 16. Bf1 {[%clk 0:02:56.7]} 16... Bd8
{[%clk 0:02:25.8]} 17. a5 {[%clk 0:02:51.6]} 17... Bc7 {[%clk 0:02:25.3]} 18.
Qa4 {[%clk 0:02:49.7]} 18... Bxg3 {[%clk 0:02:22.5]} 19. hxg3 {[%clk 0:02:49.3]}
19... Nf6 {[%clk 0:02:18.4]} 20. Qb4 {[%clk 0:02:43.1]} 20... Ne8 {[%clk
0:02:17.5]} 21. Nb3 {[%clk 0:02:42.3]} 21... Qc7 {[%clk 0:02:15.7]} 22. Nc5
{[%clk 0:02:37.8]} 22... Nd6 {[%clk 0:02:14.7]} 23. Ra3 {[%clk 0:02:31.5]} 23...
Rfb8 {[%clk 0:01:55]} 24. Rb3 {[%clk 0:02:23.6]} 24... Bc2 {[%clk 0:01:48.5]}
25. Qb6 {[%clk 0:02:18.7]} 25... Qxb6 {[%clk 0:01:36.5]} 26. Rxb6 {[%clk
0:02:17.6]} 26... Nc8 {[%clk 0:00:48.8]} 27. Rxb7 {[%clk 0:02:16.4]} 27... Rxb7
{[%clk 0:00:48.9]} 28. Nxb7 {[%clk 0:02:16.3]} 28... Rb8 {[%clk 0:00:48.2]} 29.
Bxa6 {[%clk 0:02:14.9]} 29... Na7 {[%clk 0:00:42.1]} 30. b4 {[%clk 0:02:04.9]}
1-0

[Event "*** Titled Tuesday Blitz"]
[Site "Chess.com"]
[Date "2020.11.10"]
[Round "7"]
[White "LawrenceTrent"]
[Black "BocharovD"]
[Result "0-1"]
[WhiteElo "2550"]
[BlackElo "2775"]
[TimeControl "180+1"]
[EndTime "11:19:48 PST"]
[Termination "BocharovD won by resignation"]

1. c4 {[%clk 0:03:00.9]} 1... c5 {[%clk 0:02:58.6]} 2. Nc3 {[%clk 0:03:00.3]}
2... g6 {[%clk 0:02:58.3]} 3. e3 {[%clk 0:03:01.2]} 3... Nf6 {[%clk 0:02:57.5]}
4. h4 {[%clk 0:03:02.1]} 4... h6 {[%clk 0:02:51.6]} 5. Nf3 {[%clk 0:03:00.5]}
5... Bg7 {[%clk 0:02:50.9]} 6. d4 {[%clk 0:02:46.6]} 6... O-O {[%clk 0:02:49.1]}
7. d5 {[%clk 0:02:46.4]} 7... e6 {[%clk 0:02:49]} 8. Be2 {[%clk 0:02:46.2]} 8...
exd5 {[%clk 0:02:48.8]} 9. cxd5 {[%clk 0:02:47.1]} 9... d6 {[%clk 0:02:48.2]}
10. Nd2 {[%clk 0:02:46.5]} 10... Re8 {[%clk 0:02:46.9]} 11. g4 {[%clk
0:02:37.7]} 11... Nbd7 {[%clk 0:02:37]} 12. Nc4 {[%clk 0:02:33.6]} 12... Ne5
{[%clk 0:02:34.8]} 13. Nxe5 {[%clk 0:02:33.8]} 13... Rxe5 {[%clk 0:02:34.6]} 14.
f4 {[%clk 0:02:34.4]} 14... Re8 {[%clk 0:02:34.4]} 15. g5 {[%clk 0:02:34.6]}
15... hxg5 {[%clk 0:02:27.2]} 16. hxg5 {[%clk 0:02:35.5]} 16... Ne4 {[%clk
0:02:26.2]} 17. Nxe4 {[%clk 0:02:33.3]} 17... Rxe4 {[%clk 0:02:27.1]} 18. Bf3
{[%clk 0:02:33.6]} 18... Bf5 {[%clk 0:02:27.1]} 19. Bxe4 {[%clk 0:02:27.5]}
19... Bxe4 {[%clk 0:02:28]} 20. Rh2 {[%clk 0:02:23.9]} 20... b5 {[%clk
0:02:27.1]} 21. Kf1 {[%clk 0:02:21]} 21... Qd7 {[%clk 0:02:24.4]} 22. a4 {[%clk
0:02:03]} 22... b4 {[%clk 0:02:23.8]} 23. Ra2 {[%clk 0:02:03.1]} 23... c4 {[%clk
0:02:09.2]} 24. b3 {[%clk 0:01:37]} 24... c3 {[%clk 0:02:07.5]} 25. Rh4 {[%clk
0:01:30.6]} 25... Qf5 {[%clk 0:02:04.4]} 26. Rah2 {[%clk 0:01:26.9]} 26... Qxd5
{[%clk 0:02:01.6]} 27. Qxd5 {[%clk 0:01:17.1]} 27... Bxd5 {[%clk 0:02:01.3]} 28.
f5 {[%clk 0:01:18]} 28... Be5 {[%clk 0:01:33.8]} 29. f6 {[%clk 0:01:15.8]} 29...
Bxh2 {[%clk 0:01:30.2]} 30. Rxh2 {[%clk 0:01:07.3]} 30... Bxb3 {[%clk
0:01:25.9]} 31. a5 {[%clk 0:01:07.8]} 31... Bc4+ {[%clk 0:01:25.1]} 32. Ke1
{[%clk 0:01:07.5]} 32... b3 {[%clk 0:01:25.4]} 0-1

[Event "*** Titled Tuesday Blitz"]
[Site "Chess.com"]
[Date "2020.11.10"]
[Round "7"]
[White "Mr_Heisenberg13"]
[Black "GM4life"]
[Result "1-0"]
[WhiteElo "2488"]
[BlackElo "2274"]
[TimeControl "180+1"]
[EndTime "11:19:57 PST"]
[Termination "Mr_Heisenberg13 won by resignation"]

1. d4 {[%clk 0:03:00.9]} 1... Nf6 {[%clk 0:02:59.3]} 2. c4 {[%clk 0:03:00.8]}
2... e6 {[%clk 0:02:59.3]} 3. Nc3 {[%clk 0:03:00.3]} 3... Bb4 {[%clk 0:02:59.2]}
4. e3 {[%clk 0:02:57.4]} 4... O-O {[%clk 0:02:58.5]} 5. Bd2 {[%clk 0:02:54.2]}
5... d5 {[%clk 0:02:58.7]} 6. Nf3 {[%clk 0:02:53.9]} 6... c5 {[%clk 0:02:59.1]}
7. a3 {[%clk 0:02:53.1]} 7... Bxc3 {[%clk 0:02:58.6]} 8. Bxc3 {[%clk 0:02:53]}
8... cxd4 {[%clk 0:02:58.6]} 9. Bxd4 {[%clk 0:02:49.8]} 9... Nc6 {[%clk
0:02:58.3]} 10. Bc3 {[%clk 0:02:49.3]} 10... Ne4 {[%clk 0:02:58.1]} 11. Rc1
{[%clk 0:02:49.1]} 11... b6 {[%clk 0:02:38.3]} 12. cxd5 {[%clk 0:02:47.7]} 12...
exd5 {[%clk 0:02:32.8]} 13. Bxg7 {[%clk 0:02:47.2]} 13... Kxg7 {[%clk
0:02:27.3]} 14. Rxc6 {[%clk 0:02:46.6]} 14... Bb7 {[%clk 0:02:23.7]} 15. Rc1
{[%clk 0:02:45.4]} 15... Qd6 {[%clk 0:02:23.9]} 16. Qd4+ {[%clk 0:02:44.2]}
16... Kg8 {[%clk 0:02:23.9]} 17. Bd3 {[%clk 0:02:42.6]} 17... Rae8 {[%clk
0:02:22.5]} 18. O-O {[%clk 0:02:39.3]} 18... Qh6 {[%clk 0:02:21.7]} 19. Rc7
{[%clk 0:02:33.7]} 19... Rb8 {[%clk 0:02:18]} 20. Qe5 {[%clk 0:02:13.6]} 20...
Rfe8 {[%clk 0:02:16.5]} 21. Re7 {[%clk 0:02:10.8]} 21... Qf8 {[%clk 0:02:09.1]}
22. Rxe8 {[%clk 0:02:04.5]} 22... Rxe8 {[%clk 0:02:09.7]} 23. Qf4 {[%clk
0:02:03.7]} 23... Qg7 {[%clk 0:02:09]} 24. Nd4 {[%clk 0:02:02.1]} 24... Bc8
{[%clk 0:01:56.5]} 25. Rc1 {[%clk 0:01:59]} 25... Bh3 {[%clk 0:01:53]} 26. g3
{[%clk 0:01:50.8]} 26... Nc5 {[%clk 0:01:52]} 27. Bf5 {[%clk 0:01:46.2]} 27...
Bxf5 {[%clk 0:01:46]} 28. Nxf5 {[%clk 0:01:47.1]} 28... Qg6 {[%clk 0:01:34]} 29.
Rd1 {[%clk 0:01:20.8]} 29... Ne6 {[%clk 0:01:28]} 30. Qe5 {[%clk 0:01:18]} 30...
Nc7 {[%clk 0:01:16.4]} 31. Qxe8+ {[%clk 0:01:08.4]} 31... Nxe8 {[%clk
0:01:15.5]} 32. Ne7+ {[%clk 0:01:08.4]} 32... Kg7 {[%clk 0:01:16]} 33. Nxg6
{[%clk 0:01:08.8]} 33... h6 {[%clk 0:01:16.5]} 34. Nf4 {[%clk 0:01:06.6]} 1-0

[Event "*** Titled Tuesday Blitz"]
[Site "Chess.com"]
[Date "2020.11.10"]
[Round "7"]
[White "MartinMatthiesen"]
[Black "Volodar_Murzin"]
[Result "0-1"]
[WhiteElo "2412"]
[BlackElo "2559"]
[TimeControl "180+1"]
[EndTime "11:20:09 PST"]
[Termination "Volodar_Murzin won by resignation"]

1. d4 {[%clk 0:03:00.9]} 1... Nf6 {[%clk 0:02:59.6]} 2. c4 {[%clk 0:03:00.5]}
2... g6 {[%clk 0:03:00.2]} 3. Nc3 {[%clk 0:03:00]} 3... Bg7 {[%clk 0:03:00.4]}
4. e4 {[%clk 0:02:59.8]} 4... d6 {[%clk 0:02:57.3]} 5. Nf3 {[%clk 0:02:58.8]}
5... O-O {[%clk 0:02:57.2]} 6. Be2 {[%clk 0:02:58.7]} 6... e5 {[%clk 0:02:55.1]}
7. d5 {[%clk 0:02:58.8]} 7... Na6 {[%clk 0:02:53.6]} 8. Bg5 {[%clk 0:02:55.3]}
8... h6 {[%clk 0:02:52.1]} 9. Be3 {[%clk 0:02:55.1]} 9... Ng4 {[%clk 0:02:50.5]}
10. Bd2 {[%clk 0:02:55]} 10... f5 {[%clk 0:02:50.1]} 11. exf5 {[%clk 0:02:44]}
11... gxf5 {[%clk 0:02:48]} 12. h3 {[%clk 0:02:37.9]} 12... Nf6 {[%clk
0:02:45.4]} 13. Qc1 {[%clk 0:02:36.7]} 13... Kh7 {[%clk 0:02:41.8]} 14. g4
{[%clk 0:02:35.9]} 14... Nc5 {[%clk 0:02:33.9]} 15. g5 {[%clk 0:02:15]} 15...
Nfe4 {[%clk 0:02:31.2]} 16. gxh6 {[%clk 0:02:08.9]} 16... Nxd2 {[%clk
0:02:26.6]} 17. hxg7 {[%clk 0:02:07.8]} 17... Nxf3+ {[%clk 0:02:25.3]} 18. Kf1
{[%clk 0:02:03.5]} 18... Rg8 {[%clk 0:02:20]} 19. Bxf3 {[%clk 0:02:02.1]} 19...
Qh4 {[%clk 0:02:15.2]} 20. b4 {[%clk 0:01:28.1]} 20... Nd3 {[%clk 0:02:04.7]}
21. Qe3 {[%clk 0:01:23.9]} 21... Nf4 {[%clk 0:02:00]} 22. Ne2 {[%clk 0:01:19.6]}
22... Ng6 {[%clk 0:01:47.6]} 23. Bg2 {[%clk 0:01:15.2]} 23... Rxg7 {[%clk
0:01:45.6]} 24. Rc1 {[%clk 0:01:02.7]} 24... Bd7 {[%clk 0:01:40.6]} 25. c5
{[%clk 0:00:56.2]} 25... Bb5 {[%clk 0:01:38.4]} 0-1

[Event "*** Titled Tuesday Blitz"]
[Site "Chess.com"]
[Date "2020.11.10"]
[Round "7"]
[White "tsaruk_maks"]
[Black "lefonghua"]
[Result "1-0"]
[WhiteElo "2625"]
[BlackElo "2482"]
[TimeControl "180+1"]
[EndTime "11:20:11 PST"]
[Termination "tsaruk_maks won by resignation"]

1. e4 {[%clk 0:03:00.9]} 1... c5 {[%clk 0:02:59.7]} 2. Nf3 {[%clk 0:03:00.9]}
2... g6 {[%clk 0:02:59.9]} 3. d4 {[%clk 0:03:01.3]} 3... cxd4 {[%clk 0:03:00.1]}
4. Nxd4 {[%clk 0:03:01.9]} 4... Bg7 {[%clk 0:03:00]} 5. c4 {[%clk 0:03:02.5]}
5... Nc6 {[%clk 0:02:59.7]} 6. Be3 {[%clk 0:03:02.8]} 6... Nf6 {[%clk 0:02:59]}
7. Nc3 {[%clk 0:03:03.4]} 7... d6 {[%clk 0:02:58.4]} 8. Be2 {[%clk 0:03:04]}
8... O-O {[%clk 0:02:58.3]} 9. O-O {[%clk 0:03:03.6]} 9... Bd7 {[%clk
0:02:57.5]} 10. f3 {[%clk 0:03:03.7]} 10... Nxd4 {[%clk 0:02:55.6]} 11. Bxd4
{[%clk 0:03:04.6]} 11... a5 {[%clk 0:02:56]} 12. b3 {[%clk 0:03:04.9]} 12... Bc6
{[%clk 0:02:55.2]} 13. Qd2 {[%clk 0:03:05.6]} 13... Nd7 {[%clk 0:02:55]} 14. Bf2
{[%clk 0:03:06.1]} 14... Nc5 {[%clk 0:02:53.2]} 15. Rad1 {[%clk 0:03:06.7]}
15... Qb6 {[%clk 0:02:53.3]} 16. Nb5 {[%clk 0:03:07.3]} 16... Bxb5 {[%clk
0:02:46.3]} 17. cxb5 {[%clk 0:03:07.1]} 17... Rfc8 {[%clk 0:02:46.8]} 18. Bc4
{[%clk 0:02:56.3]} 18... Qd8 {[%clk 0:02:43]} 19. Rfe1 {[%clk 0:02:13.8]} 19...
Qe8 {[%clk 0:02:31.4]} 20. f4 {[%clk 0:02:12.6]} 20... b6 {[%clk 0:02:27.1]} 21.
Bd5 {[%clk 0:01:56.4]} 21... Ra7 {[%clk 0:02:19.1]} 22. Bc6 {[%clk 0:01:55.3]}
22... Qf8 {[%clk 0:02:15.2]} 23. e5 {[%clk 0:01:46.8]} 23... Rd8 {[%clk
0:02:06.3]} 24. Bxc5 {[%clk 0:01:27.1]} 24... bxc5 {[%clk 0:02:04.9]} 25. Qd3
{[%clk 0:00:50.1]} 25... Rb8 {[%clk 0:01:46.2]} 26. Qc4 {[%clk 0:00:32.4]} 26...
e6 {[%clk 0:01:41.2]} 27. Rxd6 {[%clk 0:00:27.9]} 27... Qc8 {[%clk 0:01:35.7]}
28. Qxc5 {[%clk 0:00:26.3]} 28... Bf8 {[%clk 0:01:35.2]} 29. Qxa7 {[%clk
0:00:26.3]} 29... Bxd6 {[%clk 0:01:32.3]} 30. exd6 {[%clk 0:00:27.2]} 1-0

[Event "*** Titled Tuesday Blitz"]
[Site "Chess.com"]
[Date "2020.11.10"]
[Round "7"]
[White "ShcufNaiRolf"]
[Black "MVM2008"]
[Result "1-0"]
[WhiteElo "2336"]
[BlackElo "2184"]
[TimeControl "180+1"]
[EndTime "11:20:12 PST"]
[Termination "ShcufNaiRolf won by checkmate"]

1. e4 {[%clk 0:03:00.9]} 1... e5 {[%clk 0:02:58.9]} 2. Nf3 {[%clk 0:02:58.6]}
2... Nc6 {[%clk 0:02:56.5]} 3. Bb5 {[%clk 0:02:57.9]} 3... a6 {[%clk 0:02:56]}
4. Ba4 {[%clk 0:02:57.3]} 4... Nf6 {[%clk 0:02:55.8]} 5. O-O {[%clk 0:02:57.5]}
5... Be7 {[%clk 0:02:54.9]} 6. Re1 {[%clk 0:02:57.4]} 6... b5 {[%clk 0:02:54.3]}
7. Bb3 {[%clk 0:02:57.8]} 7... O-O {[%clk 0:02:54.4]} 8. h3 {[%clk 0:02:51.2]}
8... d5 {[%clk 0:02:53.1]} 9. exd5 {[%clk 0:02:49.9]} 9... Nxd5 {[%clk 0:02:54]}
10. Nxe5 {[%clk 0:02:50.3]} 10... Nxe5 {[%clk 0:02:54.9]} 11. Rxe5 {[%clk
0:02:50.6]} 11... c6 {[%clk 0:02:55.5]} 12. Nc3 {[%clk 0:02:47]} 12... Bd6
{[%clk 0:02:55.1]} 13. Re1 {[%clk 0:02:42.1]} 13... Nf4 {[%clk 0:02:43.7]} 14.
d3 {[%clk 0:02:32.8]} 14... Nxh3+ {[%clk 0:01:59.9]} 15. gxh3 {[%clk 0:02:26.8]}
15... Bxh3 {[%clk 0:01:59.2]} 16. Qh5 {[%clk 0:02:03.4]} 16... Qd7 {[%clk
0:01:41.4]} 17. Ne4 {[%clk 0:01:30.7]} 17... Rae8 {[%clk 0:01:35.9]} 18. Bg5
{[%clk 0:01:22.8]} 18... h6 {[%clk 0:01:25.2]} 19. Bxh6 {[%clk 0:01:12.2]} 19...
Rxe4 {[%clk 0:00:45.6]} 20. Rxe4 {[%clk 0:01:03.6]} 20... gxh6 {[%clk
0:00:45.1]} 21. Qg6+ {[%clk 0:00:57.9]} 21... Kh8 {[%clk 0:00:45.2]} 22. Qxh6+
{[%clk 0:00:58.3]} 22... Kg8 {[%clk 0:00:45.6]} 23. Qg6+ {[%clk 0:00:58.5]}
23... Kh8 {[%clk 0:00:45.7]} 24. Rh4# {[%clk 0:00:59]} 1-0

[Event "*** Titled Tuesday Blitz"]
[Site "Chess.com"]
[Date "2020.11.10"]
[Round "7"]
[White "IrishMonkey"]
[Black "yuki_chess123"]
[Result "1-0"]
[WhiteElo "2471"]
[BlackElo "2220"]
[TimeControl "180+1"]
[EndTime "11:20:18 PST"]
[Termination "IrishMonkey won by resignation"]

1. g4 {[%clk 0:03:00.9]} 1... d5 {[%clk 0:02:45.6]} 2. h3 {[%clk 0:02:58.4]}
2... c6 {[%clk 0:02:44.7]} 3. Nf3 {[%clk 0:02:55.9]} 3... Nd7 {[%clk 0:02:42.2]}
4. d4 {[%clk 0:02:53.5]} 4... e6 {[%clk 0:02:39.5]} 5. Bg2 {[%clk 0:02:51.4]}
5... Bd6 {[%clk 0:02:39.3]} 6. c4 {[%clk 0:02:48]} 6... h5 {[%clk 0:02:38.7]} 7.
c5 {[%clk 0:02:45.8]} 7... hxg4 {[%clk 0:02:33]} 8. hxg4 {[%clk 0:02:40.2]} 8...
Rxh1+ {[%clk 0:02:32.2]} 9. Bxh1 {[%clk 0:02:40.2]} 9... Bc7 {[%clk 0:02:24.5]}
10. Nc3 {[%clk 0:02:40.8]} 10... b6 {[%clk 0:02:14.8]} 11. b4 {[%clk 0:02:37.9]}
11... a5 {[%clk 0:02:12.8]} 12. b5 {[%clk 0:02:32.3]} 12... bxc5 {[%clk
0:02:03.4]} 13. bxc6 {[%clk 0:02:27.8]} 13... Ndf6 {[%clk 0:01:57.1]} 14. g5
{[%clk 0:02:28]} 14... Ne4 {[%clk 0:01:41.5]} 15. Qc2 {[%clk 0:02:23]} 15...
Nxc3 {[%clk 0:01:22.8]} 16. Qxc3 {[%clk 0:02:20.9]} 16... c4 {[%clk 0:01:21.5]}
17. g6 {[%clk 0:02:16.2]} 17... f6 {[%clk 0:01:12.2]} 18. Nd2 {[%clk 0:02:16]}
18... Ne7 {[%clk 0:01:02.1]} 19. Ba3 {[%clk 0:02:12.5]} 19... Nxg6 {[%clk
0:00:53.8]} 20. Bf3 {[%clk 0:02:06.6]} 20... Kf7 {[%clk 0:00:46]} 21. Bh5 {[%clk
0:02:03.2]} 21... Qh8 {[%clk 0:00:43.6]} 22. Qf3 {[%clk 0:01:57.8]} 22... Qh6
{[%clk 0:00:38.4]} 23. Bc1 {[%clk 0:01:54.3]} 23... Qf4 {[%clk 0:00:32.9]} 24.
Qxf4 {[%clk 0:01:44.8]} 24... Bxf4 {[%clk 0:00:31.6]} 25. Nf3 {[%clk 0:01:45.7]}
25... Bxc1 {[%clk 0:00:28.6]} 26. Rxc1 {[%clk 0:01:44]} 26... Rb8 {[%clk
0:00:19.7]} 27. Nh4 {[%clk 0:01:34]} 27... Rb6 {[%clk 0:00:19.4]} 28. Nxg6
{[%clk 0:01:31.3]} 28... Kg8 {[%clk 0:00:18.9]} 1-0

[Event "*** Titled Tuesday Blitz"]
[Site "Chess.com"]
[Date "2020.11.10"]
[Round "7"]
[White "zajka-molotok"]
[Black "Sacbutt"]
[Result "1-0"]
[WhiteElo "2509"]
[BlackElo "2289"]
[TimeControl "180+1"]
[EndTime "11:20:25 PST"]
[Termination "zajka-molotok won by resignation"]

1. Nf3 {[%clk 0:03:00.9]} 1... e6 {[%clk 0:02:57.2]} 2. g3 {[%clk 0:03:00.1]}
2... d5 {[%clk 0:02:57.1]} 3. Bg2 {[%clk 0:03:00.5]} 3... Nf6 {[%clk 0:02:57.5]}
4. O-O {[%clk 0:02:58.8]} 4... Be7 {[%clk 0:02:58]} 5. d3 {[%clk 0:02:56.7]}
5... O-O {[%clk 0:02:57.9]} 6. Nbd2 {[%clk 0:02:55.5]} 6... c5 {[%clk
0:02:56.4]} 7. e4 {[%clk 0:02:55.2]} 7... Nc6 {[%clk 0:02:54.4]} 8. e5 {[%clk
0:02:51.1]} 8... Nd7 {[%clk 0:02:53.1]} 9. Re1 {[%clk 0:02:49.3]} 9... b5 {[%clk
0:02:52]} 10. Nf1 {[%clk 0:02:42]} 10... Bb7 {[%clk 0:02:51.9]} 11. h4 {[%clk
0:02:41.2]} 11... a5 {[%clk 0:02:51.4]} 12. h5 {[%clk 0:02:40.6]} 12... h6
{[%clk 0:02:48.7]} 13. N1h2 {[%clk 0:02:40.3]} 13... b4 {[%clk 0:02:44.4]} 14.
Ng4 {[%clk 0:02:38.8]} 14... Qc7 {[%clk 0:02:40.4]} 15. Bf4 {[%clk 0:02:35.6]}
15... Rfe8 {[%clk 0:02:34.6]} 16. Qd2 {[%clk 0:02:30.3]} 16... Nd4 {[%clk
0:02:21.5]} 17. Nfh2 {[%clk 0:02:16.6]} 17... c4 {[%clk 0:02:09.3]} 18. c3
{[%clk 0:02:01.4]} 18... bxc3 {[%clk 0:02:02.6]} 19. bxc3 {[%clk 0:02:02.3]}
19... Nb5 {[%clk 0:01:58.2]} 20. d4 {[%clk 0:02:01.6]} 20... Rab8 {[%clk
0:01:46.6]} 21. Nf6+ {[%clk 0:01:24.1]} 21... gxf6 {[%clk 0:01:35.8]} 22. exf6
{[%clk 0:01:25]} 22... Bd6 {[%clk 0:01:33.6]} 23. Bxh6 {[%clk 0:01:08.1]} 1-0